fUSD/lending_fUSD_20250606
["ID","MTS","AMOUNT","RATE_DAILY","PERIOD"]
[364637812,1749169890907,-968.97,0.00031315,7]
[364637813,1749169890916,-156.692243,0.00031315,7]
[364637814,1749169890926,-1010.0,0.00031315,7]
[364637815,1749169890935,-844.65,0.00031315,7]
[364637816,1749169890943,-266.915365,0.00031315,7]
[364637817,1749169890953,-1526.53,0.00031315,7]
[364637818,1749169890964,-2074.53,0.00031315,7]
[364637819,1749169890974,-1391.46,0.00031315,7]
[364637820,1749169890983,-481.36,0.00031315,7]
[364637821,1749169890992,-1144.75,0.00031315,7]
[364637822,1749169891002,-1496.25,0.00031315,7]
[364637823,1749169891011,-2088.12,0.00031315,7]
[364637824,1749169891021,-2429.04,0.00031315,7]
[364637825,1749169891032,-2148.42,0.00031315,7]
[364637826,1749169891041,-550.16,0.00031315,2]
[364637827,1749169891050,-1006.19,0.00031315,7]
[364637828,1749169891060,-4057.88,0.00031315,7]
[364637829,1749169891069,-75398.65,0.00031315,7]
[364637830,1749169891079,-831.38,0.00031315,7]
[364637831,1749169891088,-150.0,0.00031315,2]
[364637832,1749169891097,-916.23,0.00031315,7]
[364637833,1749169891106,-1158.74,0.00031315,7]
[364637834,1749169891116,-1256.48,0.00031315,7]
[364637835,1749169891125,-750.6,0.00031315,7]
[364637836,1749169891135,-657.45,0.00031315,7]
[364637837,1749169891145,-845.15,0.00031315,7]
[364637838,1749169891155,-1850.13,0.00031315,7]
[364637839,1749169891164,-1384.3,0.00031315,7]
[364637840,1749169891173,-3678.84,0.00031315,7]
[364637841,1749169891183,-480.0,0.00031315,7]
[364637842,1749169891194,-1543.72,0.00031315,7]
[364637843,1749169891205,-4770.57704655,0.00031315,2]
[364637844,1749169891217,-940.41,0.00031315,7]
[364637845,1749169891227,-480.0,0.00031315,7]
[364637846,1749169891235,-480.0,0.00031315,7]
[364637847,1749169891244,-480.0,0.00031315,7]
[364637848,1749169891255,-2140.61,0.00031315,7]
[364637849,1749169891264,-884.63,0.00031315,7]
[364637850,1749169891274,-676.31,0.00031315,7]
[364637851,1749169891283,-4494.31,0.00031315,7]
[364637852,1749169891292,-525.08362769,0.00031315,7]
[364637853,1749169891301,-1236.81,0.00031315,7]
[364637854,1749169891311,-480.0,0.00031315,7]
[364637855,1749169891321,-649.9761203,0.0003132,2]
[364637856,1749169891330,-593.1032097,0.0003132,2]
[364637857,1749169891340,-536.2302992,0.0003132,2]
[364637858,1749169891350,-479.3573887,0.0003132,2]
[364637859,1749169891361,-422.4844782,0.0003132,2]
[364637860,1749169891371,-365.6115676,0.0003132,2]
[364637861,1749169891381,-29007.3645507,0.0003132,2]
[364637862,1749169891391,-33885.8758615,0.0003132,2]
[364637863,1749169891400,-38764.3871723,0.0003132,2]
[364637864,1749169891410,-43642.8984831,0.0003132,2]
[364637865,1749169891420,-48521.4097939,0.0003132,2]
[364637866,1749169891432,-53399.9211047,0.0003132,2]
[364637867,1749169891442,-3697.8338034,0.0003132,2]
[364637868,1749169891453,-4319.7422158,0.0003132,2]
[364637869,1749169891464,-4941.6506282,0.0003132,2]
[364637870,1749169891474,-5563.5590406,0.0003132,2]
[364637871,1749169891484,-6185.467453,0.0003132,2]
[364637872,1749169891494,-6807.3758654,0.0003132,2]
[364637873,1749169891504,-3454.8180007,0.0003132,2]
[364637874,1749169891514,-4035.8555736,0.0003132,2]
[364637875,1749169891523,-4616.8931464,0.0003132,2]
[364637876,1749169891534,-5197.9307193,0.0003132,2]
[364637877,1749169891544,-5778.9682921,0.0003132,2]
[364637878,1749169891553,-6360.005865,0.0003132,2]
[364637879,1749169891563,-89724.333328,0.0003132,2]
[364637880,1749169891572,-104814.3348422,0.0003132,2]
[364637881,1749169891582,-69136.24114656,0.0003132,2]
[364637882,1749169892012,-47918.0000024,0.0003132,2]
[364637883,1749169892707,-205.0,0.00026915,2]
[364637884,1749169892719,-480.0,0.00030164,7]
[364637885,1749169892728,-338.71986443,0.00030164,7]
[364637886,1749169892748,-127.71736762,0.00030164,7]
[364637887,1749169892758,-425.63734275,0.00030164,7]
[364637888,1749169892768,-480.0,0.00030164,7]
[364637889,1749169892777,-480.0,0.00030164,7]
[364637890,1749169892787,-480.0,0.00030164,7]
[364637891,1749169892796,-480.0,0.00030164,7]
[364637892,1749169892807,-480.0,0.00030328,7]
[364637893,1749169892815,-480.0,0.00030328,7]
[364637894,1749169892826,-426.32123638,0.00030328,7]
[364637895,1749169892835,-480.0,0.00030328,7]
[364637896,1749169892844,-480.0,0.00030493,7]
[364637897,1749169892854,-480.0,0.00030493,7]
[364637898,1749169892863,-480.0,0.00030657,7]
[364637899,1749169892873,-480.0,0.00030657,7]
[364637900,1749169892882,-480.0,0.00030657,7]
[364637901,1749169892891,-480.0,0.00030821,7]
[364637902,1749169892901,-480.0,0.00030821,7]
[364637903,1749169892910,-509.14000001,0.00030821,7]
[364637904,1749169892920,-480.0,0.00030986,7]
[364637905,1749169892929,-480.0,0.00030986,7]
[364637906,1749169892939,-702.14,0.0003115,7]
[364637907,1749169892958,-480.0,0.0003115,7]
[364637908,1749169892969,-480.0,0.0003115,7]
[364637909,1749169892979,-702.14,0.00031315,7]
[364637910,1749169892988,-480.0,0.00031315,7]
[364637911,1749169892997,-293.71908767,0.00031315,7]
[364637912,1749169893007,-2850.09520754,0.0003132,2]
[364637913,1749169893016,-18994.39683738,0.0003132,2]
[364637914,1749169893028,-8969.8426798,0.0003132,2]
[364637915,1749169893888,-400.0,0.00030163,2]
[364637916,1749169893898,-908.23363814,0.00030164,7]
[364637917,1749169893910,-340.34395,0.00030164,7]
[364637918,1749169898690,500.0,0.00035616,120]
[364637919,1749169898838,500.0,0.00035616,120]
[364637920,1749169899266,500.0,0.00035616,120]
[364637921,1749169899317,500.0,0.00035616,120]
[364637922,1749169899361,500.0,0.00035616,120]
[364637923,1749169899425,500.0,0.00035616,120]
[364637924,1749169899474,500.0,0.00035616,120]
[364637925,1749169899552,500.0,0.00035616,120]
[364637926,1749169899594,500.0,0.00035616,120]
[364637927,1749169899656,500.0,0.00035616,120]
[364637928,1749169899710,500.0,0.00035616,120]
[364637929,1749169899776,500.0,0.00035616,120]
[364637930,1749169899810,500.0,0.00035616,120]
[364637931,1749169899943,618.0487456,0.00035616,120]
[364637932,1749169899987,500.0,0.00035616,120]
[364637933,1749169900260,500.0,0.00035616,120]
[364637934,1749169900353,212.21539305,0.00035616,120]
[364637935,1749169904846,3200.0,0.00035616,120]
[364637936,1749169919544,1003.08,0.00019102,2]
[364637937,1749169980287,130216.77,0.00035616,120]
[364637942,1749170179813,1367.97,0.00035616,120]
[364637943,1749170199886,3200.0,0.00035616,120]
[364637946,1749170275362,480.0,0.00035616,120]
[364637950,1749170326472,181.7,0.00027894,120]
[364637951,1749170424502,200.67045277,0.00035616,120]
[364637954,1749170502351,3200.0,0.00035616,120]
[364637955,1749170502673,3200.0,0.00035616,120]
[364637963,1749170720843,159.8,0.00013699,2]
[364637970,1749170799509,3200.0,0.00035616,120]
[364637994,1749170886770,230.52,0.00033904,120]
[364637996,1749170925930,1000.0,0.0003561,120]
[364637997,1749170939612,179.0,0.000356,120]
[364638091,1749170965277,179.0,0.000356,120]
[364638116,1749171032141,-150.0,0.00019999,2]
[364638117,1749171032151,-150.0,0.00021369,2]
[364638118,1749171032161,-156.41611617,0.00022647,3]
[364638119,1749171032236,-443.58388383,0.00022647,3]
[364638120,1749171032246,-132.54565518,0.00022647,2]
[364638121,1749171032257,-117.45434482,0.00022647,2]
[364638122,1749171032266,-150.0,0.00022739,2]
[364638123,1749171032276,-150.0,0.00024109,2]
[364638124,1749171032285,-500.0,0.00024932,2]
[364638125,1749171032294,-176.49283414,0.00025379,2]
[364638126,1749171032303,-94.09289302,0.00025479,2]
[364638127,1749171032315,-55.90710698,0.00025479,2]
[364638128,1749171032325,-500.0,0.00025961,2]
[364638129,1749171032334,-444.09289302,0.00025961,2]
[364638130,1749171032380,-149.90710698,0.00025961,2]
[364638131,1749171032389,-207.4,0.00025961,2]
[364638132,1749171032399,-1200.0,0.00025975,2]
[364638134,1749171032408,-300.0,0.00025976,2]
[364638135,1749171032417,-1247.54,0.00025977,2]
[364638136,1749171032427,-6673.89,0.00025977,2]
[364638137,1749171032436,-433.64689302,0.00025977,2]
[364638138,1749171032446,-1019.2,0.00025977,2]
[364638139,1749171032459,-484.96,0.00025977,2]
[364638141,1749171032475,-1648.74310698,0.00025977,2]
[364638143,1749171032484,-999.99,0.00025977,2]
[364638144,1749171032493,-1318.24,0.00025977,2]
[364638145,1749171032502,-250.59529371,0.00026121,2]
[364638146,1749171032512,-211.0,0.0002645,2]
[364638147,1749171032521,-150.0,0.00026849,2]
[364638148,1749171032529,-150.99,0.00026849,2]
[364638149,1749171032539,-464.73537836,0.000269,16]
[364638150,1749171032548,-211.0,0.0002699,2]
[364638151,1749171032557,-19.32682656,0.00027032,2]
[364638152,1749171032569,-980.67317344,0.00027032,2]
[364638153,1749171032578,-13515.14,0.0002708,2]
[364638154,1749171032588,-200.0,0.00027142,2]
[364638155,1749171032598,-2892.58,0.00027278,30]
[364638156,1749171032607,-215.0738,0.0002733,2]
[364638158,1749171032616,-464.73537836,0.00027348,16]
[364638160,1749171032625,-152.27,0.00027397,2]
[364638163,1749171032634,-250.0,0.00027423,2]
[364638165,1749171032643,-2751.0,0.00027436,2]
[364638169,1749171032653,-150.0,0.00027436,7]
[364638172,1749171032663,-211.0,0.0002753,30]
[364638175,1749171032672,-172.0,0.0002758,2]
[364638178,1749171032681,-165.08,0.00027697,2]
[364638180,1749171032690,-464.73537836,0.00027797,17]
[364638183,1749171032699,-1783.54,0.00027878,2]
[364638187,1749171032709,-689.28,0.00027922,2]
[364638189,1749171032719,-211.0,0.0002807,30]
[364638192,1749171032732,-226.0,0.00028112,2]
[364638195,1749171032742,-150.0,0.00028218,2]
[364638197,1749171032751,-1247.54,0.0002824,2]
[364638199,1749171032760,-464.73537836,0.00028245,18]
[364638200,1749171032770,-205.0,0.00028326,2]
[364638203,1749171032780,-694.82589275,0.00028413,2]
[364638205,1749171032789,-151.0,0.00028496,2]
[364638207,1749171032798,-151.0,0.00028496,2]
[364638209,1749171032809,-1000.0,0.00028496,2]
[364638211,1749171032818,-800.0,0.00028496,2]
[364638213,1749171032828,-151.0,0.00028496,2]
[364638215,1749171032837,-800.0,0.00028496,2]
[364638217,1749171032846,-151.0,0.00028496,2]
[364638219,1749171032855,-800.0,0.00028496,2]
[364638221,1749171032864,-151.0,0.00028496,2]
[364638223,1749171032873,-800.0,0.00028496,2]
[364638225,1749171032882,-151.0,0.00028496,2]
[364638227,1749171032891,-800.0,0.00028496,2]
[364638229,1749171032901,-151.0,0.00028496,2]
[364638231,1749171032910,-800.0,0.00028496,2]
[364638233,1749171032919,-186.32160522,0.00028496,2]
[364638235,1749171032928,-800.0,0.00028496,2]
[364638237,1749171032938,-151.0,0.00028496,2]
[364638239,1749171032947,-800.0,0.00028496,2]
[364638241,1749171032957,-800.0,0.00028496,2]
[364638243,1749171032968,-800.0,0.00028496,2]
[364638245,1749171032977,-800.0,0.00028496,2]
[364638247,1749171032986,-800.0,0.00028496,2]
[364638249,1749171032995,-800.0,0.00028496,2]
[364638251,1749171033004,-151.0,0.00028496,2]
[364638253,1749171033013,-800.0,0.00028496,2]
[364638255,1749171033024,-800.0,0.00028496,2]
[364638256,1749171033033,-668.65185757,0.00028496,2]
[364638258,1749171033043,-300.0,0.00028496,2]
[364638260,1749171033053,-300.0,0.00028496,2]
[364638263,1749171033063,-300.0,0.00028496,2]
[364638264,1749171033072,-300.0,0.00028496,2]
[364638266,1749171033083,-180.59083497,0.00028496,2]
[364638268,1749171033093,-4083.10041551,0.00028513,2]
[364638735,1749171037938,-10288.88525559,0.00028513,2]
[364638736,1749171037949,-4926.66900002,0.00028513,2]
[364638737,1749171037996,-4601.34532888,0.00028513,2]
[364638738,1749171038005,-184.34,0.00028521,91]
[364638739,1749171038016,-211.0,0.0002861,30]
[364638740,1749171038026,-5210.41,0.00028637,2]
[364638741,1749171038035,-223.0315306,0.00028699,2]
[364638742,1749171038056,-200.0,0.00028718,2]
[364638743,1749171038071,-150.0,0.00028742,2]
[364638744,1749171038081,-1000.0,0.00028767,15]
[364638745,1749171038091,-1000.0,0.00028767,15]
[364638746,1749171038100,-1000.0,0.00028767,15]
[364638747,1749171038110,-1000.0,0.00028767,15]
[364638748,1749171038120,-1000.0,0.00028767,15]
[364638749,1749171038130,-1000.0,0.00028767,15]
[364638750,1749171038139,-1000.0,0.00028767,15]
[364638751,1749171038149,-1000.0,0.00028767,15]
[364638752,1749171038159,-1000.0,0.00028767,15]
[364638753,1749171038169,-1000.0,0.00028767,15]
[364638754,1749171038178,-1000.0,0.00028767,15]
[364638756,1749171038188,-1000.0,0.00028767,15]
[364638758,1749171038198,-1000.0,0.00028767,15]
[364638760,1749171038208,-1000.0,0.00028767,15]
[364638762,1749171038217,-712.84064051,0.00028767,15]
[364638764,1749171038233,-287.15935949,0.00028767,15]
[364638766,1749171038242,-1000.0,0.00028767,15]
[364638768,1749171038251,-1000.0,0.00028767,15]
[364638770,1749171038260,-171.37364588,0.00028767,15]
[364638772,1749171038270,-500.0,0.00028794,2]
[364638774,1749171038280,-995.87764966,0.00028906,2]
[364638777,1749171038300,-2985.03235034,0.00028906,2]
[364638779,1749171038310,-157.62,0.00028961,2]
[364638782,1749171038320,-160.08,0.00029,2]
[364638784,1749171038330,-151.0,0.00029044,2]
[364638786,1749171038339,-694.82589274,0.00029083,2]
[364638788,1749171038350,-159.8,0.0002911,2]
[364638789,1749171038359,-152.27,0.0002911,2]
[364638792,1749171038369,-211.0,0.0002915,30]
[364638794,1749171038379,-158.69,0.000292,2]
[364638796,1749171038389,-158.69,0.000292,2]
[364638798,1749171038398,-158.69,0.000292,2]
[364638800,1749171038408,-80.52475692,0.000292,2]
[364638970,1749171040269,-78.16524308,0.000292,2]
[364638971,1749171040279,-158.69,0.000292,2]
[364638973,1749171040288,-158.69,0.000292,2]
[364638975,1749171040297,-158.69,0.000292,2]
[364638977,1749171040307,-158.69,0.000292,2]
[364638979,1749171040316,-158.69,0.000292,2]
[364638981,1749171040325,-158.77,0.000292,2]
[364638983,1749171040335,-357.27292254,0.000292,2]
[364638985,1749171040344,-181.68094418,0.000292,2]
[364638987,1749171040354,-500.0,0.000292,2]
[364638988,1749171040365,-500.0,0.000292,2]
[364638990,1749171040375,-500.0,0.000292,2]
[364638992,1749171040385,-500.0,0.000292,2]
[364638994,1749171040395,-539.75046695,0.000292,2]
[364638996,1749171040404,-500.0,0.000292,2]
[364638998,1749171040414,-500.0,0.000292,2]
[364639000,1749171040423,-357.87887785,0.000292,2]
[364639002,1749171040433,-500.0,0.000292,2]
[364639003,1749171040443,-500.0,0.000292,2]
[364639005,1749171040452,-500.0,0.000292,2]
[364639007,1749171040464,-500.0,0.000292,2]
[364639009,1749171040474,-500.0,0.000292,2]
[364639011,1749171040483,-138248.81,0.00029201,2]
[364639013,1749171040493,-1131.06,0.00029224,2]
[364639015,1749171040504,-689.28,0.00029318,2]
[364639017,1749171040513,-200.11525808,0.00029416,2]
[364639019,1749171040523,-35383.9,0.00029501,2]
[364639020,1749171040532,-150.0,0.00029588,2]
[364639022,1749171040541,-482.49206366,0.000296,2]
[364639024,1749171040551,-615.0,0.000296,2]
[364639026,1749171040560,-211.0,0.000297,30]
[364639028,1749171040575,-1500.0,0.00029816,2]
[364639030,1749171040589,-156.587,0.00029865,2]
[364639032,1749171040599,-693.3919763,0.00029865,2]
[364639034,1749171040609,-13835.3790297,0.00029897,2]
[364639035,1749171040619,-2000.0,0.000299,2]
[364639037,1749171040629,-179.054632,0.000299,2]
[364639039,1749171040638,-179.054632,0.000299,2]
[364639041,1749171040648,-179.054632,0.000299,2]
[364639043,1749171040658,-708.36,0.00029984,2]
[364639045,1749171040667,-69176.8951483,0.0002999,2]
[364639047,1749171040677,-36941.20138712,0.0003,2]
[364639049,1749171040686,-110000.0,0.0003,2]
[364639051,1749171040696,-160.0,0.0003,14]
[364639053,1749171040705,-165.08,0.00030005,2]
[364639056,1749171040717,-738.68988505,0.00030033,2]
[364639057,1749171040730,-738.68988504,0.00030038,2]
[364639059,1749171040740,-738.68988504,0.00030043,2]
[364639061,1749171040751,-5000.0,0.00030043,2]
[364639062,1749171040768,-231.28369723,0.00030068,2]
[364639063,1749171040783,-1165.53,0.000301,2]
[364639064,1749171040793,-1565.43130294,0.000301,4]
[364639065,1749171040802,-170.08,0.00030101,2]
[364639066,1749171040813,-13835.3790297,0.00030123,2]
[364639067,1749171040823,-46805.5110447,0.0003013,7]
[364639068,1749171040833,-235201.443504,0.00030133,2]
[364639069,1749171040842,-182085.146174,0.00030133,2]
[364639070,1749171040851,-43353.606232,0.00030134,2]
[364639071,1749171040861,-3108.25,0.00030135,5]
[364639072,1749171040870,-500.0,0.00030136,2]
[364639074,1749171040879,-223.5,0.00030137,2]
[364639075,1749171040889,-230.52,0.00030137,80]
[364639077,1749171040898,-268.85493506,0.00030142,2]
[364639079,1749171040907,-316.72811148,0.00030142,2]
[364639081,1749171040916,-431.34383329,0.00030142,2]
[364639083,1749171040926,-356.05566581,0.00030142,2]
[364639085,1749171040936,-40104.0898343,0.00030143,4]
[364639089,1749171040974,-3563.2,0.00030143,4]
[364639092,1749171040986,-509.8,0.00030143,4]
[364639094,1749171040999,-1610.30823767,0.00030143,4]
[364639118,1749171042947,-14911.14948408,0.00030143,4]
[364639119,1749171043101,-4095.2746652,0.00030143,4]
[364639120,1749171043112,-4080.98837804,0.00030143,4]
[364639121,1749171046126,-402.7706614,0.000299,21]
[364639122,1749171046135,-4925.31653337,0.00030143,4]
[364639123,1749171046202,-10212.384,0.00030143,4]
[364639126,1749171207145,179.0,0.000191,2]
[364639127,1749171208841,179.0,0.000191,2]
[364639128,1749171209765,389.56179187,0.00035616,120]
[364639129,1749171232433,1000.0,0.000353,120]
[364639131,1749171252050,386.32422921,0.00035,120]
[364639132,1749171255448,2099.82,0.00035616,120]
[364639133,1749171313429,36794.43129665,0.00035,120]
[364639144,1749171391790,2647.0,0.00035616,120]
[364639145,1749171400841,232.0,0.00035616,120]
[364639151,1749171540149,300.0,0.0003561,120]
[364639152,1749171549237,300.0,0.0003561,120]
[364639153,1749171557065,300.0,0.0003561,120]
[364639154,1749171558124,1318.0,0.00035616,120]
[364639156,1749171572246,300.0,0.0003561,120]
[364639157,1749171581063,300.0,0.0003561,120]
[364639158,1749171594454,1000.0,0.0003561,120]
[364639159,1749171608165,1000.0,0.0003561,120]
[364639160,1749171630068,804.05483587,0.0003561,120]
[364639163,1749171696548,1000.0,0.0003561,120]
[364639164,1749171716877,1000.0,0.0003561,120]
[364639165,1749171728799,1000.0,0.0003561,120]
[364639166,1749171746598,1000.0,0.0003561,120]
[364639167,1749171765862,1000.0,0.0003561,120]
[364639168,1749171775516,1000.0,0.0003561,120]
[364639169,1749171790942,1000.0,0.0003561,120]
[364639170,1749171801476,1000.0,0.0003561,120]
[364639171,1749171806745,1614.63158976,0.00035616,120]
[364639172,1749171809694,159.16,0.00013699,2]
[364639173,1749171812527,1000.0,0.0003561,120]
[364639175,1749171822820,1000.0,0.00035616,120]
[364639176,1749171826759,1000.0,0.0003561,120]
[364639177,1749171836237,1000.0,0.0003561,120]
[364639178,1749171843509,500.0,0.00035616,120]
[364639179,1749171851260,1000.0,0.0003561,120]
[364639180,1749171854852,150.0,0.000356,120]
[364639182,1749171871013,250.0,0.00035616,120]
[364639183,1749171887808,537.0,0.00035616,120]
[364639184,1749171888252,200.0,0.00035616,120]
[364639185,1749171899065,500.0,0.00035616,120]
[364639186,1749171900813,150.0,0.00035616,120]
[364639187,1749171905612,355.0,0.0003561,120]
[364639188,1749171911469,479.75856,0.00035616,120]
[364639189,1749171945592,180.0,0.0003561,120]
[364639205,1749171951658,500.0,0.00035616,120]
[364639206,1749171952536,151.0,0.00035616,120]
[364639207,1749171964521,152.0,0.00035616,120]
[364639211,1749172031678,200.0,0.00035616,120]
[364639234,1749172057738,481.55,0.00035616,120]
[364639235,1749172073552,150.0,0.00035616,120]
[364639236,1749172099626,1000.0,0.00035616,120]
[364639237,1749172107149,2478.0,0.00035616,120]
[364639238,1749172107270,1000.0,0.00035616,120]
[364639240,1749172140488,500.0,0.00035616,120]
[364639245,1749172150261,500.0,0.00035616,120]
[364639321,1749172180870,500.0,0.00035616,120]
[364639322,1749172185812,172.89,0.0003516,120]
[364639327,1749172232194,-500.0,0.00024932,2]
[364639328,1749172232206,-74.42573208,0.00026201,2]
[364639341,1749172232873,-229.68426792,0.00026201,2]
[364639342,1749172232883,-301.99,0.00026201,2]
[364639343,1749172232893,-405.73788297,0.00026347,2]
[364639344,1749172233071,-717.04211703,0.00026347,2]
[364639345,1749172233081,-152.0,0.00026905,3]
[364639346,1749172233092,-152.0,0.00027795,4]
[364639347,1749172233102,-179.0,0.00028,6]
[364639348,1749172233114,-179.0,0.00028,5]
[364639349,1749172233126,-150.99,0.0002806,2]
[364639350,1749172233137,-267.43,0.0002806,12]
[364639351,1749172233148,-152.0,0.00028174,2]
[364639352,1749172233158,-152.27,0.00028186,2]
[364639353,1749172233170,-150.0,0.00028304,7]
[364639354,1749172233181,-1000.0,0.00028308,2]
[364639355,1749172233191,-161.83113958,0.0002832,2]
[364639356,1749172233205,-251.72886042,0.0002832,2]
[364639357,1749172233216,-165.08,0.00028329,2]
[364639358,1749172233226,-2594.44313917,0.00028333,2]
[364639359,1749172233238,-84.66686083,0.00028333,2]
[364639360,1749172233248,-1131.37889619,0.00028355,30]
[364639361,1749172233260,-388.00883751,0.00028355,30]
[364639362,1749172233273,-485.84,0.00028355,30]
[364639363,1749172233521,-525.7722663,0.00028355,30]
[364639364,1749172233531,-160.00843377,0.00028393,2]
[364639365,1749172233543,-2590.99156623,0.00028393,2]
[364639366,1749172233552,-250.0,0.00028422,2]
[364639367,1749172233562,-2605.2,0.0002852,2]
[364639368,1749172233571,-3651.79453599,0.00028552,2]
[364639369,1749172233590,-11870.61921029,0.00028552,2]
[364639370,1749172233626,-8377.58625372,0.00028552,2]
[364639371,1749172233635,-930.8703907,0.00028611,2]
[364639381,1749172238260,-191.9096093,0.00028611,2]
[364639382,1749172238273,-152.0,0.00028684,5]
[364639383,1749172238286,-151.0,0.00028744,2]
[364639384,1749172238299,-1000.0,0.00028744,2]
[364639385,1749172238311,-800.0,0.00028744,2]
[364639386,1749172238323,-800.0,0.00028744,2]
[364639387,1749172238334,-800.0,0.00028744,2]
[364639388,1749172238345,-800.0,0.00028744,2]
[364639389,1749172238356,-151.0,0.00028744,2]
[364639390,1749172238368,-117.23637138,0.00028744,2]
[364639391,1749172238443,-682.76362862,0.00028744,2]
[364639392,1749172238454,-313.50028905,0.00028744,2]
[364639393,1749172238468,-486.49971095,0.00028744,2]
[364639394,1749172238480,-90.45176898,0.00028744,2]
[364639395,1749172238499,-375.11531255,0.00028744,2]
[364639600,1749172240647,-334.43291847,0.00028744,2]
[364639602,1749172240658,-800.0,0.00028744,2]
[364639604,1749172240670,-800.0,0.00028744,2]
[364639607,1749172240682,-800.0,0.00028744,2]
[364639609,1749172240693,-800.0,0.00028744,2]
[364639611,1749172240705,-800.0,0.00028744,2]
[364639613,1749172240717,-259.60352062,0.00028744,2]
[364639616,1749172240729,-643.91173884,0.00028744,2]
[364639618,1749172240740,-207.4,0.00028744,2]
[364639620,1749172240752,-157.62,0.00028756,2]
[364639622,1749172240764,-389.34497259,0.000289,20]
[364639625,1749172240777,-1158.0,0.00028921,2]
[364639627,1749172240789,-4080.0,0.00028921,2]
[364639629,1749172240800,-7016.0,0.00028921,2]
[364639631,1749172240812,-222.417,0.00028921,2]
[364639633,1749172240824,-883.0,0.00028921,2]
[364639636,1749172240836,-913.303,0.00028921,2]
[364639638,1749172240848,-304.67,0.00029,2]
[364639640,1749172240859,-304.72,0.00029,2]
[364639642,1749172240871,-300.97,0.00029,2]
[364639644,1749172240892,-160.08,0.00029,2]
[364639647,1749172240906,-301.88,0.00029007,2]
[364639649,1749172240917,-301.8,0.00029012,2]
[364639651,1749172240928,-305.4,0.0002902,2]
[364639653,1749172240939,-301.33,0.00029034,2]
[364639655,1749172240951,-302.23,0.00029058,2]
[364639658,1749172240963,-303.36,0.000291,2]
[364639660,1749172240974,-301.87,0.000291,2]
[364639662,1749172240985,-389.34497253,0.00029245,20]
[364639664,1749172240996,-2000.0,0.000293,2]
[364639666,1749172241008,-152.0,0.00029574,6]
[364639669,1749172241023,-389.34497253,0.0002959,21]
[364639671,1749172241034,-243.0,0.000297,2]
[364639673,1749172241048,-413.56,0.00029736,2]
[364639675,1749172241061,-179.0,0.000298,10]
[364639678,1749172241074,-179.0,0.000298,6]
[364639680,1749172241086,-179.0,0.000298,5]
[364639682,1749172241098,-179.0,0.000298,4]
[364639684,1749172241110,-2348.29725,0.0002983,2]
[364639686,1749172241125,-2348.29725,0.0002987,2]
[364639689,1749172241142,-3450.9259,0.00029883,2]
[364639691,1749172241153,-227.5604,0.00029883,2]
[364639693,1749172241167,-3953.7962,0.00029883,2]
[364639695,1749172241178,-1162.5,0.00029886,2]
[364639698,1749172241190,-179.0,0.000299,5]
[364639700,1749172241203,-179.0,0.000299,4]
[364639702,1749172241217,-179.0,0.000299,3]
[364639704,1749172241228,-177.58,0.000299,3]
[364639706,1749172241240,-389.34497253,0.00029934,22]
[364639708,1749172241251,-500.0,0.00029942,2]